fUSD/lending_fUSD_20240630
["ID","MTS","AMOUNT","RATE_DAILY","PERIOD"]
[330717917,1719735048606,-500.0,0.00013897,3]
[330717918,1719735048615,-504.02654164,0.00013897,3]
[330717919,1719735048624,-500.0,0.00013897,3]
[330717920,1719735048634,-551.1399236,0.00013897,3]
[330717921,1719735048643,-500.0,0.00013897,3]
[330717922,1719735048652,-500.0,0.00013897,3]
[330717923,1719735048662,-500.0,0.00013897,3]
[330717924,1719735048672,-500.0,0.00013897,3]
[330717925,1719735048683,-500.0,0.00013897,3]
[330717926,1719735048694,-500.0,0.00013897,3]
[330717927,1719735048703,-500.0,0.00013897,3]
[330717928,1719735048712,-500.0,0.00013897,3]
[330717929,1719735048721,-503.34089389,0.00013897,3]
[330717930,1719735048730,-500.0,0.00013897,3]
[330717931,1719735048739,-622.64519425,0.00013897,3]
[330717932,1719735048748,-503.96012718,0.00013897,3]
[330717933,1719735048759,-504.0347018,0.00013897,3]
[330717934,1719735048768,-500.0,0.00013897,3]
[330717935,1719735048777,-500.0,0.00013897,3]
[330717936,1719735048786,-504.52986787,0.00013897,3]
[330717937,1719735048795,-504.16502688,0.00013897,3]
[330717938,1719735048807,-500.0,0.00013897,2]
[330717939,1719735048817,-503.04482279,0.00013897,3]
[330717940,1719735048826,-500.0,0.00013897,3]
[330717941,1719735048837,-500.0,0.00013897,3]
[330717942,1719735048846,-500.0,0.00013897,3]
[330717943,1719735048860,-500.0,0.00013897,3]
[330717944,1719735048870,-506.13774935,0.00013897,3]
[330717945,1719735048880,-500.0,0.00013897,3]
[330717946,1719735048891,-501.8918251,0.00013897,3]
[330717947,1719735048900,-500.0,0.00013897,3]
[330717948,1719735048911,-500.0,0.00013897,3]
[330717949,1719735048922,-500.0,0.00013897,3]
[330717950,1719735048932,-505.55582159,0.00013897,3]
[330717951,1719735048943,-500.0,0.00013897,3]
[330717952,1719735048953,-504.53340608,0.00013897,3]
[330717953,1719735048962,-500.0,0.00013897,3]
[330717954,1719735048970,-500.0,0.00013897,3]
[330717955,1719735048979,-497.98655158,0.00013897,3]
[330717956,1719735048988,-500.0,0.00013897,3]
[330717957,1719735048999,-500.0,0.00013897,3]
[330717958,1719735049008,-504.64057557,0.00013897,3]
[330717959,1719735049018,-500.0,0.00013897,3]
[330717960,1719735049029,-618.87,0.00013897,3]
[330717961,1719735049041,-503.1681217,0.00013897,3]
[330717962,1719735049052,-507.18176684,0.00013897,3]
[330717963,1719735049063,-500.0,0.00013897,3]
[330717964,1719735049073,-504.36958723,0.00013897,3]
[330717965,1719735049082,-500.0,0.00013897,3]
[330717966,1719735049092,-644.29329263,0.00013897,3]
[330717967,1719735049101,-500.0,0.00013897,3]
[330717968,1719735049110,-500.0,0.00013897,3]
[330717969,1719735049120,-500.0,0.00013897,3]
[330717970,1719735049130,-501.36828917,0.00013897,3]
[330717971,1719735049140,-500.0,0.00013897,3]
[330717972,1719735049150,-551.10236307,0.00013897,3]
[330717973,1719735049159,-597.09096128,0.00013897,3]
[330717974,1719735049168,-576.26583902,0.00013897,3]
[330717975,1719735049178,-500.0,0.00013897,3]
[330717976,1719735049187,-502.25694557,0.00013897,3]
[330717977,1719735049196,-500.0,0.00013897,3]
[330717978,1719735049206,-501.74908328,0.00013897,3]
[330717979,1719735049216,-500.8766507,0.00013897,3]
[330717980,1719735049225,-501.81133851,0.00013897,3]
[330717981,1719735049234,-500.0,0.00013897,3]
[330717982,1719735049243,-500.0,0.00013897,3]
[330717983,1719735049253,-500.0,0.00013897,3]
[330717984,1719735049262,-615.00112239,0.00013897,3]
[330717985,1719735049272,-503.95496731,0.00013897,3]
[330717986,1719735049281,-501.77716799,0.00013897,3]
[330717987,1719735049291,-500.0,0.00013897,3]
[330717988,1719735049302,-505.68902086,0.00013897,3]
[330717989,1719735049311,-500.0,0.00013897,3]
[330717990,1719735049320,-500.0,0.00013897,3]
[330717991,1719735049329,-503.19678766,0.00013897,3]
[330717992,1719735049338,-501.61730125,0.00013897,3]
[330717993,1719735049347,-502.54591358,0.00013897,3]
[330717994,1719735049358,-505.59008812,0.00013897,3]
[330717995,1719735049367,-505.40427607,0.00013897,3]
[330717996,1719735049377,-502.40485927,0.00013897,3]
[330717997,1719735049387,-503.85449226,0.00013897,3]
[330717998,1719735049396,-250.32016325,0.00013897,3]
[330717999,1719735049406,-501.5883719,0.00013897,3]
[330718000,1719735049416,-500.0,0.00013897,3]
[330718001,1719735049426,-500.0,0.00013897,3]
[330718002,1719735049435,-502.00852191,0.00013897,3]
[330718003,1719735049445,-500.0,0.00013897,3]
[330718004,1719735049454,-500.0,0.00013897,3]
[330718005,1719735049464,-579.87,0.00013897,3]
[330718006,1719735049474,-500.0,0.00013897,3]
[330718007,1719735049483,-500.67472965,0.00013897,3]
[330718008,1719735049493,-500.0,0.00013897,3]
[330718009,1719735049502,-500.0,0.00013897,3]
[330718010,1719735049512,-500.0,0.00013897,3]
[330718011,1719735049525,-500.0,0.00013897,3]
[330718012,1719735049534,-503.45934413,0.00013897,3]
[330718013,1719735049543,-4083.56,0.00013897,2]
[330718014,1719735049552,-500.0,0.00013897,3]
[330718015,1719735049562,-504.81609241,0.00013897,3]
[330718016,1719735049573,-500.0,0.00013897,3]
[330718017,1719735049582,-574.61958057,0.00013897,3]
[330718018,1719735049592,-502.87341756,0.00013897,3]
[330718019,1719735049602,-502.31582384,0.00013897,3]
[330718020,1719735049611,-506.63633261,0.00013897,3]
[330718021,1719735049621,-502.29273607,0.00013897,3]
[330718022,1719735049630,-500.0,0.00013897,3]
[330718023,1719735049640,-503.31073254,0.00013897,3]
[330718024,1719735049649,-500.0,0.00013897,3]
[330718025,1719735049659,-244009.8214,0.00013898,2]
[330718026,1719735049669,-35707.9298,0.00013898,2]
[330718027,1719735049680,-69966.1345,0.00013898,2]
[330718028,1719735049690,-10000.0,0.000139,2]
[330718029,1719735049699,-400.0,0.000139,5]
[330718030,1719735049709,-5040.67619552,0.000139,2]
[330718031,1719735049719,-39002.17,0.00013907,3]
[330718032,1719735049728,-13418.74,0.00013907,3]
[330718033,1719735049738,-5295.8,0.00013907,3]
[330718034,1719735049747,-500.0,0.00013907,3]
[330718035,1719735049757,-4801.03,0.00013907,3]
[330718036,1719735049767,-500.0,0.00013907,3]
[330718037,1719735049776,-604.61,0.00013907,3]
[330718038,1719735049786,-500.0,0.00013907,3]
[330718039,1719735049795,-500.0,0.00013907,3]
[330718040,1719735049805,-500.0,0.00013907,3]
[330718041,1719735049815,-500.0,0.00013907,3]
[330718042,1719735049824,-500.0,0.00013907,3]
[330718043,1719735049833,-500.0,0.00013907,3]
[330718044,1719735049842,-500.0,0.00013907,3]
[330718045,1719735049854,-500.0,0.00013907,3]
[330718046,1719735049868,-500.0,0.00013907,3]
[330718047,1719735049877,-434.91,0.00013907,3]
[330718048,1719735049887,-500.0,0.00013907,3]
[330718049,1719735049895,-8386.89,0.00013907,3]
[330718050,1719735049905,-349.2,0.00013907,3]
[330718051,1719735049914,-500.0,0.00013907,3]
[330718052,1719735049924,-500.0,0.00013907,3]
[330718053,1719735049933,-500.0,0.00013907,3]
[330718054,1719735049942,-500.0,0.00013907,3]
[330718055,1719735049955,-500.0,0.00013907,3]
[330718056,1719735049966,-292.67,0.00013907,3]
[330718057,1719735049975,-1396.48016295,0.00013931,2]
[330718058,1719735049985,-4083.56,0.00013996,2]
[330718059,1719735049995,-500.0,0.00013997,3]
[330718060,1719735050004,-500.0,0.00013997,3]
[330718061,1719735050014,-500.0,0.00013997,3]
[330718062,1719735050024,-30379.71,0.00013997,3]
[330718063,1719735050035,-539.41,0.00013997,3]
[330718064,1719735050044,-500.0,0.00013997,3]
[330718065,1719735050054,-500.0,0.00013997,3]
[330718066,1719735050064,-500.0,0.00013997,3]
[330718067,1719735050076,-500.0,0.00013997,3]
[330718068,1719735050086,-500.0,0.00013997,3]
[330718069,1719735050095,-583.33,0.00013997,3]
[330718070,1719735050105,-643.98,0.00013997,3]
[330718071,1719735050115,-500.0,0.00013997,3]
[330718072,1719735050125,-500.0,0.00013997,3]
[330718073,1719735050134,-500.0,0.00013997,3]
[330718074,1719735050143,-500.0,0.00013997,3]
[330718075,1719735050154,-500.0,0.00013997,3]
[330718076,1719735050163,-500.0,0.00013997,3]
[330718077,1719735050174,-500.0,0.00013997,3]
[330718078,1719735050184,-624.67,0.00013997,3]
[330718079,1719735050193,-500.0,0.00013997,3]
[330718080,1719735050202,-500.0,0.00013997,3]
[330718081,1719735050215,-5371.12,0.00013997,3]
[330718082,1719735050224,-500.0,0.00013997,3]
[330718083,1719735050233,-500.0,0.00013997,3]
[330718084,1719735050242,-500.0,0.00013997,3]
[330718085,1719735050251,-500.0,0.00013997,3]
[330718086,1719735050260,-500.0,0.00013997,3]
[330718087,1719735050269,-501.33781193,0.00013997,3]
[330718088,1719735050278,-500.0,0.00013997,3]
[330718089,1719735050287,-9052.16,0.00013997,3]
[330718090,1719735050296,-500.0,0.00013997,3]
[330718091,1719735050305,-500.0,0.00013997,3]
[330718092,1719735050316,-500.0,0.00013997,3]
[330718093,1719735050326,-500.0,0.00013997,3]
[330718094,1719735050335,-503.89056799,0.00013997,3]
[330718095,1719735050345,-506.52695638,0.00013997,3]
[330718096,1719735050354,-500.0,0.00013997,3]
[330718097,1719735050363,-500.0,0.00013997,3]
[330718098,1719735050373,-24110.17,0.00013997,3]
[330718099,1719735050382,-500.0,0.00013997,3]
[330718100,1719735050391,-504.2917925,0.00013997,3]
[330718101,1719735050400,-500.0,0.00013997,3]
[330718102,1719735050410,-503.23441017,0.00013997,3]
[330718103,1719735050419,-502.00018817,0.00013997,3]
[330718104,1719735050430,-500.0,0.00013997,3]
[330718105,1719735050440,-500.0,0.00013997,3]
[330718106,1719735050449,-500.0,0.00013997,3]
[330718107,1719735050458,-500.0,0.00013997,3]
[330718108,1719735050626,-501.10690029,0.00013997,3]
[330718109,1719735050636,-500.0,0.00013997,3]
[330718110,1719735050646,-500.0,0.00013997,3]
[330718111,1719735050655,-500.0,0.00013997,3]
[330718112,1719735050665,-500.0,0.00013997,3]
[330718113,1719735050674,-500.0,0.00013997,3]
[330718114,1719735050683,-500.0,0.00013997,3]
[330718115,1719735050692,-500.0,0.00013997,3]
[330718116,1719735050702,-500.0,0.00013997,3]
[330718117,1719735050711,-500.0,0.00013997,3]
[330718118,1719735050719,-500.0,0.00013997,3]
[330718119,1719735050729,-500.0,0.00013997,3]
[330718120,1719735050738,-500.0,0.00013997,3]
[330718121,1719735050747,-500.0,0.00013997,3]
[330718122,1719735050756,-500.0,0.00013997,3]
[330718123,1719735050766,-500.0,0.00013997,3]
[330718124,1719735050775,-500.0,0.00013997,3]
[330718125,1719735050784,-500.0,0.00013997,3]
[330718126,1719735050793,-500.0,0.00013997,3]
[330718127,1719735050802,-500.0,0.00013997,3]
[330718128,1719735050811,-500.0,0.00013997,3]
[330718129,1719735050820,-500.0,0.00013997,3]
[330718130,1719735050830,-501.5232267,0.00013997,3]
[330718131,1719735050840,-500.0,0.00013997,3]
[330718132,1719735050853,-500.0,0.00013997,3]
[330718133,1719735050865,-500.0,0.00013997,3]
[330718134,1719735050875,-155.97167792,0.00013997,3]
[330718135,1719735050885,-19885.13,0.00013997,3]
[330718136,1719735050896,-500.0,0.00013997,3]
[330718137,1719735050905,-500.0,0.00013997,3]
[330718138,1719735050916,-500.0,0.00013997,3]
[330718139,1719735050930,-500.0,0.00013997,3]
[330718140,1719735050939,-500.0,0.00013997,3]
[330718141,1719735050948,-500.0,0.00013998,3]
[330718142,1719735050960,-503.63578003,0.00013998,3]
[330718143,1719735050970,-504.67718088,0.00013998,3]
[330718144,1719735050980,-504.10715859,0.00013998,3]
[330718145,1719735050989,-496.66596385,0.00013998,3]
[330718146,1719735050999,-500.0,0.00013998,3]
[330718147,1719735051009,-502.9740902,0.00013998,3]
[330718148,1719735051019,-507.10386055,0.00013998,3]
[330718149,1719735051029,-500.0,0.00013998,3]
[330718150,1719735051039,-502.448931,0.00013998,3]
[330718151,1719735051049,-621.81228464,0.00013998,3]
[330718152,1719735051060,-503.21995869,0.00013998,3]
[330718153,1719735051070,-502.60857244,0.00013998,3]
[330718154,1719735051079,-502.82658018,0.00013998,3]
[330718155,1719735051090,-596.34054175,0.00013998,3]
[330718156,1719735051100,-501.89228802,0.00013998,3]
[330718157,1719735051109,-502.73993338,0.00013998,3]
[330718158,1719735051119,-500.0,0.00013998,3]
[330718159,1719735051128,-503.82733407,0.00013998,3]
[330718160,1719735051138,-537.86088333,0.00013998,3]
[330718161,1719735051149,-500.0,0.00013998,3]
[330718162,1719735051159,-500.0,0.00013998,3]
[330718163,1719735051169,-500.0,0.00013998,3]
[330718164,1719735051179,-509.14964044,0.00013998,3]
[330718165,1719735051188,-500.0,0.00013998,3]
[330718166,1719735051197,-502.43089466,0.00013998,3]
[330718167,1719735051206,-502.44362959,0.00013998,3]
[330718168,1719735051215,-500.0,0.00013998,3]
[330718169,1719735051224,-502.90126095,0.00013998,3]
[330718170,1719735051233,-501.48372567,0.00013998,3]
[330718171,1719735051243,-595.97669278,0.00013998,3]
[330718172,1719735051252,-502.38764102,0.00013998,3]
[330718173,1719735051262,-501.73853088,0.00013998,3]
[330718174,1719735051272,-502.9736455,0.00013998,3]
[330718175,1719735051281,-500.0,0.00013998,3]
[330718176,1719735051290,-501.98941272,0.00013998,3]
[330718177,1719735051300,-502.06063971,0.00013998,3]
[330718178,1719735051309,-500.0,0.00013998,3]
[330718179,1719735051318,-504.81082166,0.00013998,3]
[330718180,1719735051327,-502.29095226,0.00013998,3]
[330718181,1719735051337,-503.15800895,0.00013998,3]
[330718182,1719735051346,-501.35136773,0.00013998,3]
[330718183,1719735051355,-499.6206983,0.00013998,3]
[330718184,1719735051365,-506.4274004,0.00013998,3]
[330718185,1719735051374,-500.0,0.00013998,3]
[330718186,1719735051384,-503.62806982,0.00013998,3]
[330718187,1719735051393,-493.51624553,0.00013998,3]
[330718188,1719735051403,-505.58712173,0.00013998,3]
[330718189,1719735051412,-500.0,0.00013998,3]
[330718190,1719735051421,-500.0,0.00013998,3]
[330718191,1719735051431,-500.0,0.00013998,3]
[330718192,1719735051440,-500.0,0.00013998,3]
[330718193,1719735051449,-500.0,0.00013998,3]
[330718194,1719735051458,-500.0,0.00013998,3]
[330718195,1719735051467,-500.0,0.00013998,3]
[330718196,1719735051476,-602.96518766,0.00013998,3]
[330718197,1719735051484,-500.0,0.00013998,3]
[330718198,1719735051493,-502.6724115,0.00013998,3]
[330718199,1719735051502,-500.0,0.00013998,3]
[330718200,1719735051511,-501.41445488,0.00013998,3]
[330718201,1719735051521,-502.42390947,0.00013998,3]
[330718202,1719735051530,-502.06863116,0.00013998,3]
[330718203,1719735051539,-500.0,0.00013998,3]
[330718204,1719735051549,-500.0,0.00013998,3]
[330718205,1719735051559,-501.1445751,0.00013998,3]
[330718206,1719735051568,-500.0,0.00013998,3]
[330718207,1719735051578,-503.83757666,0.00013998,3]
[330718208,1719735051587,-506.69042448,0.00013998,3]
[330718209,1719735051597,-503.56164901,0.00013998,3]
[330718210,1719735051607,-500.0,0.00013998,3]
[330718211,1719735051616,-500.0,0.00013998,3]
[330718212,1719735051625,-580.8254718,0.00013998,3]
[330718213,1719735051635,-600.78986416,0.00013998,3]
[330718214,1719735051644,-500.0,0.00013998,3]
[330718215,1719735051653,-502.17588602,0.00013998,3]
[330718216,1719735051662,-502.58897863,0.00013998,3]
[330718217,1719735051673,-500.0,0.00013998,3]
[330718218,1719735051684,-501.03887239,0.00013998,3]
[330718219,1719735051693,-501.66464169,0.00013998,3]
[330718220,1719735051702,-522.37103463,0.00013998,3]
[330718221,1719735051711,-503.46622581,0.00013998,3]
[330718222,1719735051721,-507.9255369,0.00013998,3]
[330718223,1719735051730,-502.32302689,0.00013998,3]
[330718224,1719735051740,-634.5380691,0.00013998,3]
[330718225,1719735051750,-500.0,0.00013998,3]
[330718226,1719735051760,-500.0,0.00013998,3]
[330718227,1719735051769,-500.0,0.00013998,3]
[330718228,1719735051778,-630.75,0.00013998,3]
[330718229,1719735051787,-500.0,0.00013998,3]
[330718230,1719735051796,-586.20327084,0.00013998,3]
[330718231,1719735051806,-500.0,0.00013998,3]
[330718232,1719735051815,-529.35,0.00013998,2]
[330718233,1719735051824,-501.66122142,0.00013998,3]
[330718234,1719735051834,-500.0,0.00013998,3]
[330718235,1719735051843,-500.0,0.00013998,3]
[330718236,1719735051853,-567.70076887,0.00013998,2]
[330718237,1719735051867,-500.0,0.00013998,3]
[330718238,1719735051876,-500.0,0.00013998,3]
[330718239,1719735051886,-500.0,0.00013998,3]
[330718240,1719735051896,-500.0,0.00013998,3]
[330718241,1719735051907,-500.0,0.00013998,3]
[330718242,1719735051917,-251.53289531,0.00013998,3]
[330718243,1719735051927,-503.35211851,0.00013998,3]
[330718244,1719735051937,-566.87162148,0.00013998,3]
[330718245,1719735051946,-500.0,0.00013998,3]
[330718246,1719735051955,-503.75864147,0.00013998,3]
[330718247,1719735051964,-501.41374123,0.00013998,2]
[330718248,1719735051973,-500.0,0.00013998,3]
[330718249,1719735051983,-502.99321704,0.00013998,3]
[330718250,1719735051991,-552.22022221,0.00013998,3]
[330718251,1719735052001,-503.43003654,0.00013998,3]
[330718252,1719735052010,-500.0,0.00013998,3]
[330718253,1719735052019,-504.26110065,0.00013998,3]
[330718254,1719735052028,-504.55855955,0.00013998,3]
[330718255,1719735052037,-500.0,0.00013998,3]
[330718256,1719735052047,-648.09247967,0.00013998,3]
[330718257,1719735052056,-505.17607785,0.00013998,3]
[330718258,1719735052065,-503.66053821,0.00013998,3]
[330718259,1719735052075,-500.0,0.00013998,3]
[330718260,1719735052085,-500.0,0.00013998,3]
[330718261,1719735052094,-500.0,0.00013998,3]
[330718262,1719735052103,-505.83510405,0.00013998,3]
[330718263,1719735052114,-500.0,0.00013998,3]
[330718264,1719735052123,-510.59360077,0.00013998,3]
[330718265,1719735052132,-501.51537647,0.00013998,3]
[330718266,1719735052141,-500.0,0.00013998,3]
[330718267,1719735052151,-502.07633525,0.00013998,3]
[330718268,1719735052160,-500.0,0.00013998,3]
[330718269,1719735052169,-500.58447763,0.00013998,3]
[330718270,1719735052179,-503.72372859,0.00013998,3]
[330718271,1719735052189,-502.35,0.00013998,3]
[330718272,1719735052198,-548.86928278,0.00013998,3]
[330718273,1719735052207,-502.81304959,0.00013998,3]
[330718274,1719735052216,-502.94006916,0.00013998,3]
[330718275,1719735052225,-524.26953335,0.00013998,3]
[330718276,1719735052234,-504.27561492,0.00013998,3]
[330718277,1719735052244,-500.0,0.00013998,3]
[330718278,1719735052253,-506.7523065,0.00013998,3]
[330718279,1719735052262,-500.0,0.00013998,3]
[330718280,1719735052271,-507.27566409,0.00013998,3]
[330718281,1719735052281,-500.99278434,0.00013998,3]
[330718282,1719735052290,-483.62713288,0.00013998,3]
[330718283,1719735052299,-497.26925643,0.00013998,3]
[330718284,1719735052308,-504.02442173,0.00013998,3]
[330718285,1719735052317,-501.97214653,0.00013998,3]
[330718286,1719735052326,-500.0,0.00013998,3]
[330718287,1719735052335,-501.3959936,0.00013998,3]
[330718288,1719735052344,-501.33500442,0.00013998,3]
[330718289,1719735052354,-500.0,0.00013998,3]
[330718290,1719735052363,-569.30100624,0.00013998,3]
[330718291,1719735052372,-501.61795575,0.00013998,3]
[330718292,1719735052381,-502.23916833,0.00013998,3]
[330718293,1719735052391,-500.0,0.00013998,3]
[330718294,1719735052400,-500.0,0.00013998,3]
[330718295,1719735052409,-500.0,0.00013998,3]
[330718296,1719735052419,-563.36335978,0.00013998,3]
[330718297,1719735052430,-501.67842838,0.00013998,3]
[330718298,1719735052439,-500.59544832,0.00013998,3]
[330718299,1719735052449,-503.54475179,0.00013998,3]
[330718300,1719735052458,-503.69554205,0.00013998,3]
[330718301,1719735052468,-500.0,0.00013998,3]
[330718302,1719735052477,-502.07919859,0.00013998,3]
[330718303,1719735052488,-504.16349315,0.00013998,3]
[330718304,1719735052497,-500.0,0.00013998,3]
[330718305,1719735052506,-501.64754496,0.00013998,3]
[330718306,1719735052516,-507.65145113,0.00013998,3]
[330718307,1719735052525,-503.78857977,0.00013998,3]
[330718308,1719735052534,-497.05683875,0.00013998,3]
[330718309,1719735052544,-504.40558222,0.00013998,3]
[330718310,1719735052553,-500.0,0.00013998,3]
[330718311,1719735052563,-551.48766907,0.00013998,3]
[330718312,1719735052572,-500.0,0.00013998,3]
[330718313,1719735052582,-503.94482109,0.00013998,3]
[330718314,1719735052593,-542.06233111,0.00013998,3]
[330718315,1719735052603,-500.0,0.00013998,3]
[330718316,1719735052614,-500.0,0.00013998,3]
[330718317,1719735052623,-500.0,0.00013998,3]
[330718318,1719735052632,-500.0,0.00013998,3]
[330718319,1719735052642,-500.0,0.00013998,3]
[330718320,1719735052651,-513.00379851,0.00013998,3]
[330718321,1719735052660,-501.65873462,0.00013998,3]
[330718322,1719735052670,-506.2802917,0.00013998,3]
[330718323,1719735052681,-500.0,0.00013998,3]
[330718324,1719735052691,-500.0,0.00013998,3]
[330718325,1719735052700,-504.06131965,0.00013998,3]
[330718326,1719735052709,-622.08,0.00013998,3]
[330718327,1719735052718,-506.2147605,0.00013998,3]
[330718328,1719735052727,-504.21055597,0.00013998,3]
[330718329,1719735052736,-523.65995044,0.00013998,3]
[330718330,1719735052746,-502.53139402,0.00013998,3]
[330718331,1719735052755,-500.0,0.00013998,3]
[330718332,1719735052765,-603.21692016,0.00013998,2]
[330718333,1719735052775,-584.75519893,0.00013998,3]
[330718334,1719735052784,-504.88088772,0.00013998,3]
[330718335,1719735052794,-540.20434304,0.00013998,3]
[330718336,1719735052803,-500.0,0.00013998,3]
[330718337,1719735052812,-500.0,0.00013998,3]
[330718338,1719735052821,-501.23683928,0.00013998,3]
[330718339,1719735052831,-500.0,0.00013998,3]
[330718340,1719735052840,-578.58582342,0.00013998,3]
[330718341,1719735052849,-500.0,0.00013998,2]
[330718342,1719735052859,-504.8008099,0.00013998,3]
[330718343,1719735052870,-588.86595868,0.00013998,3]
[330718344,1719735052879,-500.0,0.00013998,3]
[330718345,1719735052889,-533.58711385,0.00013998,3]
[330718346,1719735052898,-500.0,0.00013998,3]
[330718347,1719735052907,-500.0,0.00013998,3]
[330718348,1719735052917,-500.0,0.00013998,3]
[330718349,1719735052926,-500.0,0.00013998,3]
[330718350,1719735052938,-504.99153534,0.00013998,3]
[330718351,1719735052947,-500.0,0.00013998,3]
[330718352,1719735052957,-500.0,0.00013998,3]
[330718353,1719735052966,-504.96486094,0.00013998,3]
[330718354,1719735052976,-500.0,0.00013998,3]
[330718355,1719735052985,-621.35671695,0.00013998,3]
[330718356,1719735053039,-503.28652327,0.00013998,3]
[330718357,1719735053048,-500.0,0.00013998,3]
[330718358,1719735053058,-503.55401788,0.00013998,3]
[330718359,1719735053067,-500.0,0.00013998,3]
[330718360,1719735053076,-502.01550603,0.00013998,3]
[330718361,1719735053086,-500.0,0.00013998,3]
[330718362,1719735053095,-502.13274528,0.00013998,3]
[330718363,1719735053103,-500.0,0.00013998,3]
[330718364,1719735053112,-500.0,0.00013998,3]
[330718365,1719735053121,-500.0,0.00013998,3]
[330718366,1719735053130,-501.48159955,0.00013998,3]
[330718367,1719735053141,-590.2225685,0.00013998,3]
[330718368,1719735053150,-646.87812724,0.00013998,3]
[330718369,1719735053159,-500.0,0.00013998,3]
[330718370,1719735053168,-500.0,0.00013998,3]
[330718371,1719735053176,-502.24284772,0.00013998,3]
[330718372,1719735053186,-500.0,0.00013998,3]
[330718373,1719735053196,-503.64235118,0.00013998,3]
[330718374,1719735053205,-502.64755586,0.00013998,3]
[330718375,1719735053214,-502.93816664,0.00013998,3]
[330718376,1719735053225,-501.74930983,0.00013998,2]
[330718377,1719735053234,-502.03605436,0.00013998,3]
[330718378,1719735053243,-500.0,0.00013998,3]
[330718379,1719735053253,-503.1830028,0.00013998,3]
[330718380,1719735053263,-248.9174137,0.00013998,3]
[330718381,1719735053274,-261.82647125,0.00013998,3]
[330718382,1719735053285,-505.04227443,0.00013998,3]
[330718383,1719735053294,-500.0,0.00013998,3]
[330718384,1719735053303,-500.0,0.00013998,3]
[330718385,1719735053312,-500.0,0.00013998,3]
[330718386,1719735053321,-500.0,0.00013998,3]
[330718387,1719735053331,-504.23327868,0.00013998,3]
[330718388,1719735053340,-575.76365521,0.00013998,3]
[330718389,1719735053349,-502.05575603,0.00013998,3]
[330718390,1719735053358,-505.45326242,0.00013998,3]
[330718391,1719735053368,-500.0,0.00013998,3]
[330718392,1719735053377,-503.09531804,0.00013998,3]
[330718393,1719735053386,-500.0,0.00013998,3]
[330718394,1719735053395,-500.0,0.00013998,3]
[330718395,1719735053404,-505.89269776,0.00013998,3]
[330718396,1719735053414,-502.02839772,0.00013998,3]
[330718397,1719735053423,-502.74231996,0.00013998,3]
[330718398,1719735053435,-500.0,0.00013998,3]
[330718399,1719735053444,-504.52599884,0.00013998,3]
[330718400,1719735053453,-500.0,0.00013998,3]
[330718401,1719735053465,-500.0,0.00013998,3]
[330718402,1719735053474,-406.08945966,0.00013998,3]
[330718403,1719735053484,-500.0,0.00013998,3]
[330718404,1719735053493,-505.43640487,0.00013998,3]
[330718405,1719735053502,-500.0,0.00013998,3]
[330718406,1719735053512,-505.59962881,0.00013998,3]
[330718407,1719735053521,-500.0,0.00013998,3]
[330718408,1719735053530,-505.58230716,0.00013998,3]
[330718409,1719735053539,-500.0,0.00013998,3]
[330718410,1719735053549,-500.0,0.00013998,3]
[330718411,1719735053558,-500.0,0.00013998,3]
[330718412,1719735053567,-500.0,0.00013998,3]
[330718413,1719735053577,-500.0,0.00013998,3]
[330718414,1719735053586,-500.0,0.00013998,3]
[330718415,1719735053596,-504.03502097,0.00013998,3]
[330718416,1719735053606,-500.0,0.00013998,2]